[Event "Titled Tuesday Blitz February 14 Late 2023"]
[White "Mushini Ajay"]
[Black "Wang, Alexander J"]
[WhiteFideId "35066188"]
[BlackFideId "30955270"]
[WhiteElo "2310"]
[BlackElo "1815"]
[Result "1-0"]
[Round "09"]
[TimeControl "180+2"]
[Date "2023.02.14"]
[WhiteClock "0:01:05"]
[BlackClock "0:01:11"]

1. e4 {[%clk 0:03:00]}  c5 {[%clk 0:02:59]} 2. Nf3 {[%clk 0:03:00]}  e6 {[%clk 0:02:59]} 3. d4 {[%clk 0:03:00]}  cxd4 {[%clk 0:03:00]} 4. Nxd4 {[%clk 0:02:59]}  Nf6 {[%clk 0:03:00]} 5. Nc3 {[%clk 0:02:59]}  Nc6 {[%clk 0:02:59]} 6. Ndb5 {[%clk 0:02:58]}  Bc5 {[%clk 0:02:54]} 7. Bf4 {[%clk 0:02:46]}  O-O {[%clk 0:02:38]} 8. Bd6 {[%clk 0:02:44]}  Qb6 {[%clk 0:02:33]} 9. Bxc5 {[%clk 0:02:44]}  Qxc5 {[%clk 0:02:31]} 10. Qd6 {[%clk 0:02:44]}  Qb6 {[%clk 0:02:30]} 11. a4 {[%clk 0:02:23]}  Ne8 {[%clk 0:02:25]} 12. a5 {[%clk 0:02:12]}  Nxd6 {[%clk 0:02:05]} 13. axb6 {[%clk 0:02:11]}  Nxb5 {[%clk 0:02:04]} 14. Bxb5 {[%clk 0:02:02]}  a6 {[%clk 0:02:02]} 15. Bxc6 {[%clk 0:02:02]}  dxc6 {[%clk 0:02:02]} 16. O-O-O {[%clk 0:01:50]}  e5 {[%clk 0:02:01]} 17. Na4 {[%clk 0:01:49]}  a5 {[%clk 0:01:50]} 18. c4 {[%clk 0:01:31]}  Be6 {[%clk 0:01:44]} 19. b3 {[%clk 0:01:29]}  Rab8 {[%clk 0:01:38]} 20. Kc2 {[%clk 0:01:27]}  f5 {[%clk 0:01:36]} 21. exf5 {[%clk 0:01:21]}  Bxf5+ {[%clk 0:01:37]} 22. Kc3 {[%clk 0:01:21]}  Bg4 {[%clk 0:01:29]} 23. f3 {[%clk 0:01:21]}  Bh5 {[%clk 0:01:27]} 24. Rhe1 {[%clk 0:01:19]}  Rfe8 {[%clk 0:01:25]} 25. Rd7 {[%clk 0:01:07]}  Bg6 {[%clk 0:01:16]} 26. Nc5 {[%clk 0:01:06]}  Bf5 {[%clk 0:01:11]} 27. Rxb7 {[%clk 0:01:05]}  Rxb7 {[%clk 0:01:11]} 28. Nxb7 {[%clk 0:01:05]} 1-0


[Site "https://www.chess.com"]

[Event "Titled Tuesday Blitz February 14 Late 2023"]
[White "Hu, Merric"]
[Black "Marcolino, Daniel Mattos"]
[WhiteFideId "30906660"]
[BlackFideId "2106841"]
[WhiteElo "2022"]
[BlackElo "2006"]
[Result "0-1"]
[Round "09"]
[TimeControl "180+2"]
[Date "2023.02.14"]
[WhiteClock "0:00:29"]
[BlackClock "0:00:17"]

1. d4 {[%clk 0:02:55]}  Nf6 {[%clk 0:02:57]} 2. c3 {[%clk 0:02:53]}  d5 {[%clk 0:02:56]} 3. Nf3 {[%clk 0:02:53]}  Bf5 {[%clk 0:02:54]} 4. Bf4 {[%clk 0:02:51]}  c6 {[%clk 0:02:52]} 5. h3 {[%clk 0:02:52]}  e6 {[%clk 0:02:52]} 6. e3 {[%clk 0:02:51]}  h6 {[%clk 0:02:52]} 7. Bd3 {[%clk 0:02:51]}  Bxd3 {[%clk 0:02:51]} 8. Qxd3 {[%clk 0:02:51]}  Bd6 {[%clk 0:02:52]} 9. Nbd2 {[%clk 0:02:51]}  O-O {[%clk 0:02:50]} 10. g4 {[%clk 0:02:50]}  Qc7 {[%clk 0:02:50]} 11. Bxd6 {[%clk 0:02:47]}  Qxd6 {[%clk 0:02:50]} 12. Rg1 {[%clk 0:02:48]}  Nbd7 {[%clk 0:02:20]} 13. g5 {[%clk 0:02:24]}  hxg5 {[%clk 0:02:21]} 14. Rxg5 {[%clk 0:02:21]}  c5 {[%clk 0:02:08]} 15. O-O-O {[%clk 0:02:18]}  cxd4 {[%clk 0:02:00]} 16. exd4 {[%clk 0:02:17]}  Rfc8 {[%clk 0:01:32]} 17. Rdg1 {[%clk 0:02:15]}  Ne8 {[%clk 0:01:32]} 18. h4 {[%clk 0:02:05]}  b5 {[%clk 0:01:14]} 19. Kb1 {[%clk 0:02:00]}  b4 {[%clk 0:01:14]} 20. c4 {[%clk 0:01:57]}  dxc4 {[%clk 0:00:57]} 21. Nxc4 {[%clk 0:01:56]}  Qf4 {[%clk 0:00:49]} 22. R1g4 {[%clk 0:01:35]}  Qf6 {[%clk 0:00:45]} 23. b3 {[%clk 0:01:28]}  a5 {[%clk 0:00:43]} 24. Qe4 {[%clk 0:01:16]}  a4 {[%clk 0:00:39]} 25. Rf4 {[%clk 0:01:15]}  Qh6 {[%clk 0:00:38]} 26. Nfe5 {[%clk 0:00:55]}  Ndf6 {[%clk 0:00:35]} 27. Qg2 {[%clk 0:00:50]}  axb3 {[%clk 0:00:35]} 28. axb3 {[%clk 0:00:50]}  Qh7+ {[%clk 0:00:35]} 29. Kb2 {[%clk 0:00:48]}  Ra7 {[%clk 0:00:21]} 30. h5 {[%clk 0:00:46]}  Nd5 {[%clk 0:00:16]} 31. Rfg4 {[%clk 0:00:29]}  Ra2+ {[%clk 0:00:17]} 0-1


[Site "https://www.chess.com"]

[Event "Titled Tuesday Blitz February 14 Late 2023"]
[White "Lenderman, Aleksandr"]
[Black "Yu, Yangyi"]
[WhiteFideId "2021285"]
[BlackFideId "8603820"]
[WhiteElo "2572"]
[BlackElo "2729"]
[Result "1/2-1/2"]
[Round "10"]
[TimeControl "180+2"]
[Date "2023.02.14"]
[WhiteClock "0:00:05"]
[BlackClock "0:00:01"]

1. d4 {[%clk 0:03:00]}  Nf6 {[%clk 0:02:59]} 2. c4 {[%clk 0:03:01]}  e6 {[%clk 0:02:59]} 3. g3 {[%clk 0:03:01]}  d5 {[%clk 0:02:58]} 4. Bg2 {[%clk 0:03:02]}  Be7 {[%clk 0:02:58]} 5. Nf3 {[%clk 0:03:02]}  O-O {[%clk 0:02:59]} 6. O-O {[%clk 0:03:02]}  dxc4 {[%clk 0:02:59]} 7. Qc2 {[%clk 0:03:01]}  a6 {[%clk 0:02:59]} 8. a4 {[%clk 0:02:59]}  Bd7 {[%clk 0:02:59]} 9. Qxc4 {[%clk 0:02:59]}  Bc6 {[%clk 0:02:59]} 10. Bg5 {[%clk 0:02:59]}  Nbd7 {[%clk 0:03:00]} 11. Rd1 {[%clk 0:02:58]}  h6 {[%clk 0:02:56]} 12. Bxf6 {[%clk 0:02:58]}  Nxf6 {[%clk 0:02:57]} 13. Nbd2 {[%clk 0:02:58]}  a5 {[%clk 0:02:55]} 14. Qc2 {[%clk 0:02:56]}  Bb4 {[%clk 0:02:54]} 15. Nc4 {[%clk 0:02:51]}  Be4 {[%clk 0:02:53]} 16. Qc1 {[%clk 0:02:51]}  c6 {[%clk 0:02:53]} 17. Nce5 {[%clk 0:02:51]}  Qe7 {[%clk 0:02:49]} 18. Nd3 {[%clk 0:02:51]}  Rfd8 {[%clk 0:02:49]} 19. e3 {[%clk 0:02:51]}  Nd5 {[%clk 0:02:44]} 20. Nfe5 {[%clk 0:02:50]}  Bxg2 {[%clk 0:02:43]} 21. Kxg2 {[%clk 0:02:51]}  Rac8 {[%clk 0:02:43]} 22. Qc4 {[%clk 0:02:49]}  Rc7 {[%clk 0:02:27]} 23. Qb3 {[%clk 0:02:43]}  Rdc8 {[%clk 0:02:23]} 24. Rac1 {[%clk 0:02:43]}  c5 {[%clk 0:02:07]} 25. dxc5 {[%clk 0:02:20]}  Bxc5 {[%clk 0:02:07]} 26. Nc4 {[%clk 0:02:18]}  Bb4 {[%clk 0:01:54]} 27. e4 {[%clk 0:02:17]}  Nf6 {[%clk 0:01:49]} 28. f3 {[%clk 0:02:17]}  Rc6 {[%clk 0:01:46]} 29. Nce5 {[%clk 0:01:48]}  Rxc1 {[%clk 0:01:41]} 30. Rxc1 {[%clk 0:01:49]}  Rxc1 {[%clk 0:01:38]} 31. Nxc1 {[%clk 0:01:50]}  Nd7 {[%clk 0:01:39]} 32. Ncd3 {[%clk 0:01:40]}  Nxe5 {[%clk 0:01:38]} 33. Nxe5 {[%clk 0:01:41]}  Qc5 {[%clk 0:01:35]} 34. Nd3 {[%clk 0:01:40]}  Qe3 {[%clk 0:01:34]} 35. Qc2 {[%clk 0:01:39]}  Bd2 {[%clk 0:01:33]} 36. Nf2 {[%clk 0:01:23]}  Qd4 {[%clk 0:01:15]} 37. b3 {[%clk 0:01:16]}  Be3 {[%clk 0:01:10]} 38. Ng4 {[%clk 0:01:17]}  Bg5 {[%clk 0:00:59]} 39. h4 {[%clk 0:01:07]}  Be7 {[%clk 0:00:59]} 40. Qc8+ {[%clk 0:01:04]}  Kh7 {[%clk 0:00:57]} 41. Qxb7 {[%clk 0:01:04]}  Bc5 {[%clk 0:00:57]} 42. Kh3 {[%clk 0:00:28]}  Qd1 {[%clk 0:00:42]} 43. Nf6+ {[%clk 0:00:12]}  Kg6 {[%clk 0:00:33]} 44. Nh5 {[%clk 0:00:13]}  Qf1+ {[%clk 0:00:21]} 45. Kg4 {[%clk 0:00:07]}  f5+ {[%clk 0:00:21]} 46. Kf4 {[%clk 0:00:05]}  Bd6+ {[%clk 0:00:16]} 47. Ke3 {[%clk 0:00:03]}  Qe1+ {[%clk 0:00:08]} 48. Kd3 {[%clk 0:00:04]}  Qd1+ {[%clk 0:00:08]} 49. Kc4 {[%clk 0:00:04]}  Qc2+ {[%clk 0:00:05]} 50. Kd4 {[%clk 0:00:04]}  Qd2+ {[%clk 0:00:03]} 51. Kc4 {[%clk 0:00:04]}  Qe2+ {[%clk 0:00:03]} 52. Kd4 {[%clk 0:00:04]}  Qd2+ {[%clk 0:00:03]} 53. Kc4 {[%clk 0:00:04]}  Qc2+ {[%clk 0:00:03]} 54. Kd4 {[%clk 0:00:05]}  Qd1+ {[%clk 0:00:01]} 55. Kc4 {[%clk 0:00:05]}  Qc2+ {[%clk 0:00:01]} 1/2-1/2


[Site "https://www.chess.com"]

[Event "Titled Tuesday Blitz February 14 Late 2023"]
[White "Perez Ponsa, Federico"]
[Black "Andreikin, Dmitry"]
[WhiteFideId "117927"]
[BlackFideId "4158814"]
[WhiteElo "2532"]
[BlackElo "2729"]
[Result "0-1"]
[Round "10"]
[TimeControl "180+2"]
[Date "2023.02.14"]
[WhiteClock "0:00:05"]
[BlackClock "0:00:21"]

1. e4 {[%clk 0:03:00]}  e6 {[%clk 0:02:57]} 2. d4 {[%clk 0:03:00]}  d5 {[%clk 0:02:58]} 3. e5 {[%clk 0:03:00]}  c5 {[%clk 0:02:58]} 4. c3 {[%clk 0:03:01]}  Nc6 {[%clk 0:02:58]} 5. Nf3 {[%clk 0:03:02]}  Qb6 {[%clk 0:02:58]} 6. Be2 {[%clk 0:02:59]}  Nh6 {[%clk 0:02:57]} 7. Bxh6 {[%clk 0:02:56]}  gxh6 {[%clk 0:02:57]} 8. Qd2 {[%clk 0:02:53]}  Bd7 {[%clk 0:02:53]} 9. O-O {[%clk 0:02:51]}  Rg8 {[%clk 0:02:53]} 10. Na3 {[%clk 0:02:51]}  c4 {[%clk 0:02:51]} 11. Nc2 {[%clk 0:02:48]}  Qd8 {[%clk 0:02:30]} 12. b3 {[%clk 0:02:42]}  cxb3 {[%clk 0:02:30]} 13. axb3 {[%clk 0:02:42]}  f6 {[%clk 0:02:29]} 14. c4 {[%clk 0:02:40]}  fxe5 {[%clk 0:02:25]} 15. cxd5 {[%clk 0:02:37]}  exd5 {[%clk 0:02:22]} 16. dxe5 {[%clk 0:02:34]}  Bh3 {[%clk 0:02:16]} 17. g3 {[%clk 0:01:42]}  Bxf1 {[%clk 0:02:11]} 18. Kxf1 {[%clk 0:01:43]}  Bc5 {[%clk 0:01:50]} 19. b4 {[%clk 0:01:26]}  Bb6 {[%clk 0:01:50]} 20. Qxh6 {[%clk 0:01:10]}  Qe7 {[%clk 0:01:41]} 21. b5 {[%clk 0:01:07]}  Na5 {[%clk 0:01:27]} 22. Qh3 {[%clk 0:00:47]}  Qd7 {[%clk 0:00:42]} 23. e6 {[%clk 0:00:37]}  Qe7 {[%clk 0:00:42]} 24. Qh5+ {[%clk 0:00:36]}  Rg6 {[%clk 0:00:42]} 25. Ne5 {[%clk 0:00:31]}  O-O-O {[%clk 0:00:35]} 26. Nxg6 {[%clk 0:00:27]}  hxg6 {[%clk 0:00:33]} 27. Qxg6 {[%clk 0:00:27]}  Rf8 {[%clk 0:00:29]} 28. f4 {[%clk 0:00:09]}  Qc5 {[%clk 0:00:29]} 29. Ke1 {[%clk 0:00:06]}  Nb3 {[%clk 0:00:23]} 30. e7 {[%clk 0:00:05]}  Qg1+ {[%clk 0:00:20]} 31. Bf1 {[%clk 0:00:04]}  Qf2+ {[%clk 0:00:20]} 32. Kd1 {[%clk 0:00:05]}  Qd2# {[%clk 0:00:21]} 0-1


[Site "https://www.chess.com"]

[Event "Titled Tuesday Blitz February 14 Late 2023"]
[White "Sarana, Alexey"]
[Black "Zhigalko, Sergei"]
[WhiteFideId "24133795"]
[BlackFideId "13502956"]
[WhiteElo "2685"]
[BlackElo "2572"]
[Result "1-0"]
[Round "10"]
[TimeControl "180+2"]
[Date "2023.02.14"]
[WhiteClock "0:01:10"]
[BlackClock "0:00:08"]

1. c4 {[%clk 0:03:00]}  e5 {[%clk 0:02:57]} 2. Nc3 {[%clk 0:03:01]}  Nf6 {[%clk 0:02:57]} 3. Nf3 {[%clk 0:03:01]}  Nc6 {[%clk 0:02:55]} 4. e3 {[%clk 0:03:01]}  Bb4 {[%clk 0:02:54]} 5. Nd5 {[%clk 0:03:01]}  Ba5 {[%clk 0:02:53]} 6. a3 {[%clk 0:02:52]}  d6 {[%clk 0:02:47]} 7. Qc2 {[%clk 0:02:33]}  Nxd5 {[%clk 0:02:44]} 8. cxd5 {[%clk 0:02:34]}  Ne7 {[%clk 0:02:45]} 9. Bc4 {[%clk 0:02:22]}  O-O {[%clk 0:02:43]} 10. O-O {[%clk 0:02:23]}  Bf5 {[%clk 0:02:32]} 11. d3 {[%clk 0:02:21]}  Bb6 {[%clk 0:02:19]} 12. h3 {[%clk 0:02:15]}  Rc8 {[%clk 0:02:06]} 13. e4 {[%clk 0:02:15]}  Bd7 {[%clk 0:01:59]} 14. Be3 {[%clk 0:02:15]}  h6 {[%clk 0:01:47]} 15. d4 {[%clk 0:02:11]}  Ng6 {[%clk 0:01:41]} 16. dxe5 {[%clk 0:02:05]}  dxe5 {[%clk 0:01:40]} 17. Qd2 {[%clk 0:02:05]}  Qf6 {[%clk 0:01:36]} 18. Kh2 {[%clk 0:02:04]}  Rfd8 {[%clk 0:01:21]} 19. Rac1 {[%clk 0:02:03]}  c6 {[%clk 0:01:10]} 20. Rfd1 {[%clk 0:01:59]}  Bxe3 {[%clk 0:01:00]} 21. Qxe3 {[%clk 0:02:00]}  b6 {[%clk 0:00:59]} 22. dxc6 {[%clk 0:01:49]}  Bxc6 {[%clk 0:00:57]} 23. g3 {[%clk 0:01:23]}  Nf8 {[%clk 0:00:34]} 24. Rxd8 {[%clk 0:01:17]}  Rxd8 {[%clk 0:00:34]} 25. Bxf7+ {[%clk 0:01:15]}  Kh8 {[%clk 0:00:14]} 26. Nxe5 {[%clk 0:01:14]}  Qxe5 {[%clk 0:00:15]} 27. Rxc6 {[%clk 0:01:13]}  Qxb2 {[%clk 0:00:15]} 28. Bd5 {[%clk 0:01:11]}  Nd7 {[%clk 0:00:13]} 29. Rxh6+ {[%clk 0:01:09]}  gxh6 {[%clk 0:00:08]} 30. Qxh6# {[%clk 0:01:10]} 1-0


[Site "https://www.chess.com"]

[Event "Titled Tuesday Blitz February 14 Late 2023"]
[White "Melkumyan, Hrant"]
[Black "Hakobyan, Aram"]
[WhiteFideId "13302485"]
[BlackFideId "13306677"]
[WhiteElo "2645"]
[BlackElo "2608"]
[Result "0-1"]
[Round "10"]
[TimeControl "180+2"]
[Date "2023.02.14"]
[WhiteClock "0:00:01"]
[BlackClock "0:00:20"]

1. d4 {[%clk 0:03:00]}  g6 {[%clk 0:03:00]} 2. e4 {[%clk 0:03:00]}  Bg7 {[%clk 0:02:59]} 3. Nf3 {[%clk 0:03:00]}  Nf6 {[%clk 0:02:59]} 4. Bd3 {[%clk 0:03:00]}  d5 {[%clk 0:02:59]} 5. e5 {[%clk 0:02:58]}  Ne4 {[%clk 0:02:59]} 6. Nbd2 {[%clk 0:02:55]}  Nxd2 {[%clk 0:02:52]} 7. Bxd2 {[%clk 0:02:56]}  c5 {[%clk 0:02:53]} 8. c3 {[%clk 0:02:54]}  O-O {[%clk 0:02:45]} 9. h4 {[%clk 0:02:52]}  Bg4 {[%clk 0:02:46]} 10. h5 {[%clk 0:02:48]}  cxd4 {[%clk 0:02:40]} 11. hxg6 {[%clk 0:02:36]}  fxg6 {[%clk 0:02:34]} 12. cxd4 {[%clk 0:02:22]}  Nc6 {[%clk 0:02:34]} 13. Bc3 {[%clk 0:02:12]}  Qd7 {[%clk 0:02:30]} 14. Be2 {[%clk 0:02:00]}  Rac8 {[%clk 0:02:02]} 15. Qd3 {[%clk 0:01:54]}  Qf5 {[%clk 0:01:55]} 16. Qxf5 {[%clk 0:01:47]}  Bxf5 {[%clk 0:01:56]} 17. Kd2 {[%clk 0:01:33]}  h5 {[%clk 0:01:53]} 18. Nh4 {[%clk 0:01:23]}  Bh6+ {[%clk 0:01:47]} 19. Ke1 {[%clk 0:01:22]}  Bc2 {[%clk 0:01:31]} 20. g3 {[%clk 0:01:22]}  a6 {[%clk 0:01:24]} 21. f4 {[%clk 0:01:19]}  b5 {[%clk 0:01:19]} 22. a3 {[%clk 0:01:19]}  e6 {[%clk 0:01:19]} 23. Nf3 {[%clk 0:01:17]}  Be4 {[%clk 0:01:16]} 24. Rh2 {[%clk 0:01:15]}  Ne7 {[%clk 0:01:13]} 25. Nd2 {[%clk 0:00:50]}  Nf5 {[%clk 0:01:09]} 26. Nxe4 {[%clk 0:00:32]}  dxe4 {[%clk 0:01:10]} 27. Rh3 {[%clk 0:00:33]}  Rfd8 {[%clk 0:01:10]} 28. Rd1 {[%clk 0:00:32]}  Ne3 {[%clk 0:00:54]} 29. Rd2 {[%clk 0:00:31]}  Nd5 {[%clk 0:00:55]} 30. Ba5 {[%clk 0:00:26]}  Rc1+ {[%clk 0:00:53]} 31. Rd1 {[%clk 0:00:25]}  Rdc8 {[%clk 0:00:53]} 32. Rh1 {[%clk 0:00:16]}  R8c2 {[%clk 0:00:35]} 33. Kf2 {[%clk 0:00:06]}  Rxd1 {[%clk 0:00:30]} 34. Rxd1 {[%clk 0:00:07]}  h4 {[%clk 0:00:24]} 35. gxh4 {[%clk 0:00:01]}  Nxf4 {[%clk 0:00:24]} 36. Rd2 {[%clk 0:00:01]}  Nh3+ {[%clk 0:00:20]} 0-1


[Site "https://www.chess.com"]

[Event "Titled Tuesday Blitz February 14 Late 2023"]
[White "Makridis, Dimitrios"]
[Black "Yoo, Christopher Woojin"]
[WhiteFideId "25864475"]
[BlackFideId "30909694"]
[WhiteElo "2356"]
[BlackElo "2607"]
[Result "1-0"]
[Round "10"]
[TimeControl "180+2"]
[Date "2023.02.14"]
[WhiteClock "0:00:08"]
[BlackClock "0:00:03"]

1. e4 {[%clk 0:03:00]}  e5 {[%clk 0:02:55]} 2. Nf3 {[%clk 0:02:59]}  Nf6 {[%clk 0:02:54]} 3. Nxe5 {[%clk 0:02:56]}  d6 {[%clk 0:02:52]} 4. Nd3 {[%clk 0:02:55]}  Nxe4 {[%clk 0:02:51]} 5. Qe2 {[%clk 0:02:53]}  Qe7 {[%clk 0:02:50]} 6. Nf4 {[%clk 0:02:53]}  c6 {[%clk 0:02:47]} 7. d4 {[%clk 0:02:42]}  d5 {[%clk 0:02:42]} 8. f3 {[%clk 0:02:38]}  Nd6 {[%clk 0:02:35]} 9. c3 {[%clk 0:02:30]}  Nd7 {[%clk 0:02:23]} 10. Nd2 {[%clk 0:02:22]}  g6 {[%clk 0:01:52]} 11. Qxe7+ {[%clk 0:02:13]}  Bxe7 {[%clk 0:01:50]} 12. Bd3 {[%clk 0:02:13]}  O-O {[%clk 0:01:48]} 13. Kf2 {[%clk 0:02:13]}  Nb6 {[%clk 0:01:38]} 14. b3 {[%clk 0:02:12]}  Bg5 {[%clk 0:01:13]} 15. Nf1 {[%clk 0:02:05]}  Bh4+ {[%clk 0:01:03]} 16. g3 {[%clk 0:02:03]}  Be7 {[%clk 0:01:03]} 17. h4 {[%clk 0:01:58]}  Bf5 {[%clk 0:01:02]} 18. h5 {[%clk 0:01:52]}  g5 {[%clk 0:00:58]} 19. Bxf5 {[%clk 0:01:46]}  Nxf5 {[%clk 0:00:59]} 20. Nd3 {[%clk 0:01:46]}  h6 {[%clk 0:00:58]} 21. Ne3 {[%clk 0:01:42]}  Nxe3 {[%clk 0:00:52]} 22. Bxe3 {[%clk 0:01:43]}  Nd7 {[%clk 0:00:52]} 23. Rae1 {[%clk 0:01:38]}  Bd6 {[%clk 0:00:48]} 24. f4 {[%clk 0:01:35]}  Nf6 {[%clk 0:00:45]} 25. fxg5 {[%clk 0:01:31]}  Ne4+ {[%clk 0:00:45]} 26. Kf3 {[%clk 0:01:30]}  hxg5 {[%clk 0:00:44]} 27. c4 {[%clk 0:01:03]}  f5 {[%clk 0:00:39]} 28. g4 {[%clk 0:00:44]}  f4 {[%clk 0:00:24]} 29. Bc1 {[%clk 0:00:44]}  Rae8 {[%clk 0:00:24]} 30. Nf2 {[%clk 0:00:38]}  Ng3 {[%clk 0:00:20]} 31. Rxe8 {[%clk 0:00:38]}  Rxe8 {[%clk 0:00:21]} 32. Rd1 {[%clk 0:00:37]}  Ne2 {[%clk 0:00:19]} 33. cxd5 {[%clk 0:00:24]}  cxd5 {[%clk 0:00:16]} 34. Kg2 {[%clk 0:00:14]}  Bb4 {[%clk 0:00:13]} 35. Bd2 {[%clk 0:00:12]}  Bxd2 {[%clk 0:00:11]} 36. Rxd2 {[%clk 0:00:13]}  Re3 {[%clk 0:00:11]} 37. Rd3 {[%clk 0:00:05]}  Rxd3 {[%clk 0:00:05]} 38. Nxd3 {[%clk 0:00:06]}  Nxd4 {[%clk 0:00:04]} 39. Ne5 {[%clk 0:00:05]}  Nc2 {[%clk 0:00:01]} 40. Nf3 {[%clk 0:00:05]}  Ne3+ {[%clk 0:00:01]} 41. Kh3 {[%clk 0:00:05]}  Nd1 {[%clk 0:00:01]} 42. Nxg5 {[%clk 0:00:05]}  Nf2+ {[%clk 0:00:02]} 43. Kh4 {[%clk 0:00:06]}  d4 {[%clk 0:00:03]} 44. Nf3 {[%clk 0:00:06]}  d3 {[%clk 0:00:04]} 45. g5 {[%clk 0:00:06]}  Ne4 {[%clk 0:00:03]} 46. Kg4 {[%clk 0:00:05]}  d2 {[%clk 0:00:04]} 47. Nxd2 {[%clk 0:00:06]}  Nxd2 {[%clk 0:00:05]} 48. Kxf4 {[%clk 0:00:06]}  Nb1 {[%clk 0:00:05]} 49. Kf5 {[%clk 0:00:05]}  Nc3 {[%clk 0:00:05]} 50. a3 {[%clk 0:00:05]}  Nb5 {[%clk 0:00:05]} 51. a4 {[%clk 0:00:05]}  Nd4+ {[%clk 0:00:05]} 52. Kf6 {[%clk 0:00:05]}  Kh7 {[%clk 0:00:01]} 53. g6+ {[%clk 0:00:05]}  Kg8 {[%clk 0:00:01]} 54. h6 {[%clk 0:00:05]}  Nc6 {[%clk 0:00:01]} 55. h7+ {[%clk 0:00:05]}  Kh8 {[%clk 0:00:02]} 56. b4 {[%clk 0:00:04]}  a6 {[%clk 0:00:02]} 57. b5 {[%clk 0:00:04]}  axb5 {[%clk 0:00:02]} 58. axb5 {[%clk 0:00:05]}  Nd8 {[%clk 0:00:01]} 59. Ke7 {[%clk 0:00:05]}  Nc6+ {[%clk 0:00:01]} 60. bxc6 {[%clk 0:00:05]}  bxc6 {[%clk 0:00:02]} 61. Kf7 {[%clk 0:00:06]}  c5 {[%clk 0:00:03]} 62. g7+ {[%clk 0:00:07]}  Kxh7 {[%clk 0:00:03]} 63. g8=Q+ {[%clk 0:00:08]} 1-0


[Site "https://www.chess.com"]

[Event "Titled Tuesday Blitz February 14 Late 2023"]
[White "Sjugirov, Sanan"]
[Black "Mamedov, Rauf"]
[WhiteFideId "4189302"]
[BlackFideId "13401653"]
[WhiteElo "2712"]
[BlackElo "2646"]
[Result "0-1"]
[Round "10"]
[TimeControl "180+2"]
[Date "2023.02.14"]
[WhiteClock "0:00:02"]
[BlackClock "0:00:24"]

1. d4 {[%clk 0:03:00]}  Nf6 {[%clk 0:02:59]} 2. c4 {[%clk 0:03:01]}  g6 {[%clk 0:02:59]} 3. Nc3 {[%clk 0:03:02]}  Bg7 {[%clk 0:02:58]} 4. e4 {[%clk 0:03:02]}  d6 {[%clk 0:02:59]} 5. f3 {[%clk 0:03:00]}  O-O {[%clk 0:02:58]} 6. Nge2 {[%clk 0:03:00]}  a6 {[%clk 0:02:58]} 7. Be3 {[%clk 0:02:58]}  b5 {[%clk 0:02:57]} 8. Qd2 {[%clk 0:02:53]}  Nbd7 {[%clk 0:02:43]} 9. Bh6 {[%clk 0:02:49]}  Nb6 {[%clk 0:02:40]} 10. Ng3 {[%clk 0:02:46]}  b4 {[%clk 0:02:09]} 11. Nd1 {[%clk 0:02:42]}  c5 {[%clk 0:02:10]} 12. Bxg7 {[%clk 0:02:38]}  Kxg7 {[%clk 0:02:10]} 13. Ne3 {[%clk 0:02:20]}  cxd4 {[%clk 0:02:05]} 14. Qxd4 {[%clk 0:02:20]}  Nd7 {[%clk 0:02:01]} 15. h4 {[%clk 0:02:13]}  Qb6 {[%clk 0:01:52]} 16. Qd2 {[%clk 0:02:12]}  Ne5 {[%clk 0:01:10]} 17. h5 {[%clk 0:02:10]}  Be6 {[%clk 0:01:02]} 18. Be2 {[%clk 0:02:02]}  Rh8 {[%clk 0:00:53]} 19. h6+ {[%clk 0:01:56]}  Kf8 {[%clk 0:00:52]} 20. f4 {[%clk 0:01:40]}  Nc6 {[%clk 0:00:52]} 21. Nd5 {[%clk 0:01:24]}  Bxd5 {[%clk 0:00:49]} 22. cxd5 {[%clk 0:01:25]}  Nd4 {[%clk 0:00:49]} 23. Rc1 {[%clk 0:01:23]}  b3 {[%clk 0:00:43]} 24. a3 {[%clk 0:00:40]}  Nc2+ {[%clk 0:00:43]} 25. Rxc2 {[%clk 0:00:40]}  bxc2 {[%clk 0:00:44]} 26. Qxc2 {[%clk 0:00:41]}  Qe3 {[%clk 0:00:44]} 27. Rh3 {[%clk 0:00:31]}  Qxf4 {[%clk 0:00:43]} 28. b4 {[%clk 0:00:20]}  Qe5 {[%clk 0:00:42]} 29. Kf2 {[%clk 0:00:18]}  g5 {[%clk 0:00:33]} 30. Qd3 {[%clk 0:00:03]}  Rc8 {[%clk 0:00:25]} 31. Nf5 {[%clk 0:00:02]}  Nxe4+ {[%clk 0:00:24]} 0-1


[Site "https://www.chess.com"]